[Event "7th Sharjah Challengers 2024"]
[Site "Sharjah"]
[Date "2024.05.19"]
[Round "6.1"]
[White "Garifullina, Leya"]
[Black "Lashkin, Jegor"]
[Result "1/2-1/2"]
[ECO "B52"]
[WhiteElo "2431"]
[BlackElo "2449"]
[Annotator "RC"]
[PlyCount "101"]
[EventDate "2024.05.13"]
[EventType "swiss"]
[EventCountry "UAE"]
[SourceTitle "playchess.com"]
[Source "ChessBase"]
[SourceQuality "1"]
[TimeControl "5400+30"]

1. e4 {[%emt 0:00:22]} c5 {[%emt 0:00:15]} 2. Nf3 {[%emt 0:00:08]} d6 {[%emt 0:00:09]} 3. Bb5+ {[%emt 0:00:07]} Bd7 {[%emt 0:00:56]} 4. Bxd7+ {[%emt 0:00:29]} Qxd7 {[%emt 0:00:03]} 5. c4 {[%emt 0:00:11]} e5 {[%emt 0:00:16]} 6. Nc3 {[%emt 0:00:07]} Nc6 {[%emt 0:00:08]} 7. O-O {[%emt 0:00:21]} Be7 {[%emt 0:00:17]} 8. a3 {[%emt 0:00:13]} Bd8 {[%emt 0:00:15]} 9. Rb1 {[%emt 0:00:16]} Nge7 {[%emt 0:00:11]} 10. b4 {[%emt 0:00:29]} O-O {[%emt 0:00:12]} 11. d3 {[%emt 0:00:05]} f5 {[%emt 0:00:32]} 12. exf5 {[%emt 0:00:28]} Nxf5 {[%emt 0:00:13]} 13. Qe2 {[%emt 0:00:33]} Bf6 {[%emt 0:01:26]} 14. Qe4 {[%emt 0:00:10]} b6 {[%emt 0:00:18]} 15. Qg4 {[%emt 0:02:05]} Rad8 {[%emt 0:01:08]} 16. Nd2 {[%emt 0:02:21]} Nfe7 {[%emt 0:04:33]} 17. Qxd7 {[%emt 0:01:22]} Rxd7 {[%emt 0:00:16]} 18. Nde4 {[%emt 0:01:31]} cxb4 {[%emt 0:11:22]} 19. axb4 {[%emt 0:00:20]} d5 {[%emt 0:01:57]} 20. Nxf6+ {[%emt 0:03:24]} gxf6 {[%emt 0:01:08]} 21. Ba3 {[%emt 0:04:02]} dxc4 {[%emt 0:05:59]} 22. dxc4 {[%emt 0:03:02]} Rd3 {[%emt 0:11:58]} 23. Rfc1 {[%emt 0:00:19]} Nd4 {[%emt 0:01:38]} 24. Kf1 {[%emt 0:05:59]} Rc8 {[%emt 0:04:24]} 25. c5 {[%emt 0:02:39]} Kf7 {[%emt 0:08:18]} 26. b5 {[%emt 0:13:21]} bxc5 {[%emt 0:02:58]} 27. b6 {[%emt 0:00:12]} axb6 {[%emt 0:00:38]} 28. Rxb6 {[%emt 0:00:04]} Rc7 {[%emt 0:16:23]} 29. Bb2 {[%emt 0:06:14]} f5 {[%emt 0:07:13]} 30. Nb5 {[%emt 0:07:52]} Rc6 {[%emt 0:04:57]} 31. Rb7 {[%emt 0:03:46]} Nb3 {[%emt 0:01:49]} 32. Rc2 {[%emt 0:01:45]} Rd2 {[%emt 0:02:16]} 33. Rxd2 {[%emt 0:01:28]} Nxd2+ {[%emt 0:00:01]} 34. Ke2 {[%emt 0:00:13]} Nc4 {[%emt 0:00:11]} 35. Bc3 {[%emt 0:02:20]} e4 {[%emt 0:01:38]} 36. Na7 {[%emt 0:01:15]} Re6 {[%emt 0:02:12]} 37. Rc7 {[%emt 0:00:51]} Nb6 {[%emt 0:00:56]} 38. Rxc5 {[%emt 0:00:26]} Na4 {[%emt 0:03:18]} 39. Rc4 {[%emt 0:00:21]} Nxc3+ {[%emt 0:00:02]} 40. Rxc3 {[%emt 0:00:04]} Ra6 {[%emt 0:00:42]} 41. Rc7 {[%emt 0:02:31]} Ra2+ {[%emt 0:00:20]} 42. Kf1 {[%emt 0:02:03]} Kf6 {[%emt 0:00:22]} 43. g3 {[%emt 0:01:01]} e3 {[%emt 0:01:21]} 44. fxe3 {[%emt 0:00:07]} Rxh2 {[%emt 0:00:17]} 45. Rc5 {[%emt 0:01:23]} Rd2 {[%emt 0:00:49]} 46. Nc6 {[%emt 0:02:22]} Nd5 {[%emt 0:03:27]} 47. Ke1 {[%emt 0:00:06]} Rd3 {[%emt 0:00:06]} 48. Ke2 {[%emt 0:00:11]} Rxe3+ {[%emt 0:00:47]} 49. Kf2 {[%emt 0:00:04]} Re6 {[%emt 0:01:18]} 50. Rxd5 {[%emt 0:00:20]} Rxc6 {[%emt 0:00:06]} 51. Rd8 {[%emt 0:00:18]} 1/2-1/2

[Event "7th Sharjah Challengers 2024"]
[Site "Sharjah"]
[Date "2024.05.19"]
[Round "6.2"]
[White "Delgado Ramirez, Neuris"]
[Black "Divya Deshmukh"]
[Result "1/2-1/2"]
[ECO "A13"]
[WhiteElo "2489"]
[BlackElo "2443"]
[Annotator "TA"]
[PlyCount "40"]
[EventDate "2024.05.13"]
[EventType "swiss"]
[EventCountry "UAE"]
[SourceTitle "playchess.com"]
[Source "ChessBase"]
[SourceQuality "1"]
[TimeControl "5400+30"]

{[%evp 16,40,0,7,22,0,0,0,0,4,27,27,20,18,26,26,26,0,0,-8,0,-4,-4,0,0,0,0]} 1. b3 {[%emt 0:00:29]} Nf6 {[%emt 0:00:55]} 2. Bb2 {[%emt 0:00:18]} d5 {[%emt 0:00:07]} 3. e3 {[%emt 0:00:36]} e6 {[%emt 0:03:05]} 4. c4 {[%emt 0:05:24]} Be7 {[%emt 0:00:07]} 5. Nf3 {[%emt 0:00:17]} O-O {[%emt 0:00:11]} 6. Be2 {[%emt 0:00:22]} c5 {[%emt 0:01:24]} 7. O-O {[%emt 0:01:38]} Nc6 {[%emt 0:00:38]} 8. cxd5 {[%emt 0:00:13]} Nxd5 {[%emt 0:02:41]} 9. Nc3 {[%emt 0:04:10]} Bf6 {[%emt 0:06:20]} 10. Qc2 {[%emt 0:08:32]} b6 {[%emt 0:08:13]} 11. Rad1 {[%emt 0:05:45]} Nxc3 {[%emt 0:07:28]} 12. dxc3 {[%emt 0:01:48]} Qe7 {[%emt 0:03:09]} 13. Nd2 {[%emt 0:00:24]} Bb7 {[%emt 0:15:06]} 14. Ne4 {[%emt 0:02:31]} Rfd8 {[%emt 0:13:24]} 15. Nxf6+ {[%emt 0:04:59]} Qxf6 {[%emt 0:00:42]} 16. Bd3 {[%emt 0:16:03]} Rxd3 {[%emt 0:09:40] The position is equal.} 17. Qxd3 {[%emt 0:00:07]} Ne5 {[%emt 0:00:05][%cal Bc6e5,Be5f3,Bf3e1][%mdl 32] Inhibits Qd7.} 18. Qe2 {[%emt 0:00:07] [#] c4 is the strong threat.} Nf3+ $1 {[%emt 0:01:55]} 19. Kh1 $1 {[%emt 0:00:07][%cal Oe3e4] And now e4! would win.} (19. gxf3 $2 {too greedy.} Bxf3 $19) 19... Be4 $1 {[%emt 0:01:22][%cal Of6h4] Strongly threatening ...Qh4!} 20. Rfe1 {[%emt 0:17:50]} Nxe1 {[%emt 0:14:09] A rather calm draw.   Weighted Error Value: White=0.04 (flawless) /Black=0.04 (flawless) .  Inaccurate:     	White=1     	---        OK:         	White=4     	Black=5      Strong:       	White=1     	Black=1      Brilliant:      	---       	Black=1} 1/2-1/2

[Event "7th Sharjah Challengers 2024"]
[Site "Sharjah"]
[Date "2024.05.19"]
[Round "6.3"]
[White "Nitish Belurkar"]
[Black "Hesham, Abdelrahman"]
[Result "1-0"]
[ECO "B90"]
[WhiteElo "2451"]
[BlackElo "2394"]
[Annotator "TA"]
[PlyCount "93"]
[EventDate "2024.05.13"]
[EventType "swiss"]
[EventCountry "UAE"]
[SourceTitle "playchess.com"]
[Source "ChessBase"]
[SourceQuality "1"]
[TimeControl "5400+30"]

{[%evp 11,93,2,45,0,7,12,8,4,7,0,31,25,31,20,37,22,16,14,83,76,119,95,97,107,110,104,120,110,147,157,181,184,186,171,238,95,88,43,41,31,36,28,103,33,33,0,83,109,341,345,331,331,341,343,331,358,481,348,375,335,438,442,418,409,625,556,2252,951,2864,2538,2447,2575,2289,1856,1680,1600,29974,29975,29988,29989,29990,29988,29988,29979]} 1. e4 {[%emt 0:00:04]} c5 {[%emt 0:03:10]} 2. Nf3 {[%emt 0:00:09]} d6 {[%emt 0:00:03]} 3. d4 {[%emt 0:00:03]} cxd4 {[%emt 0:00:04]} 4. Nxd4 {[%emt 0:00:04]} Nf6 {[%emt 0:00:07]} 5. Nc3 {[%emt 0:00:04]} a6 {[%emt 0:00:03]} 6. h3 {[%emt 0:00:07]} e5 {[%emt 0:00:05]} 7. Nf3 {[%emt 0:00:04][%cal Bd4f3,Bf3h4,Bh4f5][%mdl 32]} h6 {[%emt 0:03:07]} 8. Bc4 {[%emt 0:02:02]} Be6 {[%emt 0:03:45]} 9. Bb3 {[%emt 0:02:03] The position is equal.} Be7 {[%emt 0:00:19]} 10. Be3 {[%emt 0:00:07]} Nbd7 {[%emt 0:01:02]} 11. Nh4 {[%emt 0:01:06]} Qc7 {[%emt 0:16:05]} 12. Qf3 {[%emt 0:06:37]} b5 {[%emt 0:04:38]} 13. Nf5 {[%emt 0:13:35]} Bf8 {[%emt 0:03:05]} 14. O-O {[%emt 0:05:47]} b4 {[%emt 0:02:28]} (14... g6 $11) 15. Nd5 $16 {[%emt 0:07:00]} Nxd5 {[%emt 0:00:22]} 16. exd5 {[%emt 0:00:49]} (16. Bxd5 Bxd5 17. exd5 g6 $11) 16... Bxf5 {[%emt 0:00:08]} 17. Qxf5 {[%emt 0:00:06]} g6 {[%emt 0:01:43]} 18. Qg4 {[%emt 0:04:51]} a5 {[%emt 0:03:09]} 19. a3 {[%emt 0:08:53] White is much more active.} bxa3 {[%emt 0:02:31]} 20. Rxa3 {[%emt 0:00:09]} Bg7 {[%emt 0:00:08] Black is weak on the light squares} 21. Ba4 {[%emt 0:10:21] aiming for Bc6.} h5 {[%emt 0:04:52]} 22. Qh4 {[%emt 0:00:43]} Rb8 {[%emt 0:18:04]} (22... O-O {keeps fighting.}) 23. Bd2 {[%emt 0:11:48]} (23. Rc3 $18 {and the rest is easy.} Qd8 24. Qxd8+ Kxd8 25. Rc6) 23... O-O {[%emt 0:04:55]} 24. Bc6 {[%emt 0:01:39]} Bf6 {[%emt 0:02:45]} 25. Qc4 {[%emt 0:00:50]} (25. Bxa5 Qxa5 (25... Bxh4 $2 26. Bxc7 Rxb2 27. Bxd7 $18) 26. Rxa5 (26. Qxf6 $2 Qxa3 27. Bxd7 Qa7 $19) 26... Bxh4 $17) 25... Rxb2 {[%emt 0:01:46][%cal Oa5a4]} 26. Bxa5 {[%emt 0:00:06] A strong pair of Bishops.} Qc8 {[%emt 0:01:49]} (26... Qa7 $1 $11) 27. Bb4 {[%emt 0:03:21]} ({Better is} 27. Rb3 $16 Rxb3 28. cxb3) 27... Qc7 $1 $14 {[%emt 0:06:10]} 28. Ba5 {[%emt 0:01:08]} (28. Raa1 $14) 28... Qc8 $16 {[%emt 0:00:31]} 29. Rb3 $36 {[%emt 0:10:07][%mdl 2048] White is in control.} e4 $2 {[%emt 0:03:19] [#] This move loses the game for Black.} 30. Rxb2 $18 {[%emt 0:00:25]} ({Inferior is} 30. Qxe4 Nc5 31. Qf3 Nxb3 (31... Rxc2 32. Qxf6 Nxb3 33. Bc3 $11) 32. Qxf6 Nxa5 $11) 30... Bxb2 {[%emt 0:00:53]} 31. Qb5 {[%emt 0:00:07]} ({Not} 31. Qxe4 Be5 $16) 31... Be5 {[%emt 0:01:45]} 32. Bxd7 {[%emt 0:00:37]} Qxc2 {[%emt 0:00:04]} 33. Bc6 {[%emt 0:03:07]} f5 {[%emt 0:00:04]} 34. Qb1 {[%emt 0:00:45]} Qc4 {[%emt 0:01:14]} 35. Rc1 {[%emt 0:00:17][%cal Bf1c1,Bc1c3,Bc3b3,Bb3b8,Bb8h8,Bh8h4][%mdl 32]} Qa6 {[%emt 0:00:53]} 36. Bc3 {[%emt 0:00:51]} Bxc3 {[%emt 0:00:10]} 37. Rxc3 {[%emt 0:00:07]} Rf7 {[%emt 0:00:08]} (37... Qa7 $142 38. Qc1 Qg7) 38. Rb3 {[%emt 0:00:14]} h4 {[%emt 0:03:55]} 39. Rb8+ {[%emt 0:00:27]} Kh7 {[%emt 0:00:06]} 40. Qb2 {[%emt 0:04:38][%csl Gb2][%cal Rb8h8] [#]} Kh6 {[%emt 0:00:07]} 41. Rh8+ {[%emt 0:01:23]} Kg5 {[%emt 0:00:18]} 42. Qc1+ {[%emt 0:00:12]} f4 {[%emt 0:01:01][%cal Bf5f4,Bf4f3][%mdl 32]} 43. Qd1 {[%emt 0:00:03]} f3 {[%emt 0:01:56]} 44. Qc1+ {[%emt 0:00:07] White mates.} Kf5 {[%emt 0:00:22]} 45. Rxh4 {[%emt 0:00:06][%csl Gh4][%cal Rc1f4]} g5 {[%emt 0:01:21]} 46. Rg4 {[%emt 0:00:05][%csl Gg4][%cal Rc1g5]} Rg7 {[%emt 0:01:48]} 47. gxf3 {[%emt 0:00:08] Weighted Error Value: White=0.25 (precise) /Black=0.37.  Loses game:     	---       	Black=1      Mistake:       	White=3     	Black=4      Inaccurate:     	White=1     	Black=7      OK:         	White=9     	Black=12     Best:        	White=5     	Black=2      Strong:       	---       	Black=1} 1-0

[Event "7th Sharjah Challengers 2024"]
[Site "Sharjah"]
[Date "2024.05.19"]
[Round "6.4"]
[White "Viani Antonio Dcunha"]
[Black "Suyarov, Mukhammadzokhid"]
[Result "1-0"]
[ECO "C43"]
[WhiteElo "2394"]
[BlackElo "2431"]
[Annotator "TA"]
[PlyCount "109"]
[EventDate "2024.05.13"]
[EventType "swiss"]
[EventCountry "UAE"]
[SourceTitle "playchess.com"]
[Source "ChessBase"]
[SourceQuality "1"]
[TimeControl "5400+30"]

{[%evp 16,109,29,28,29,0,2,0,2,0,0,-4,0,-9,-19,-31,0,0,0,0,20,44,75,78,88,91,96,83,90,84,116,91,404,374,411,349,665,686,649,694,692,687,675,639,609,468,494,486,491,479,476,463,460,453,443,443,540,544,517,461,641,641,663,655,905,884,896,847,931,931,928,774,767,767,29949,29951,29959,12818,5631,5552,5477,5317,4133,4133,4132,1337,1337,1179,29981,29982,29982,29983,29983,29984,29987,29988]} 1. e4 {[%emt 0:00:24]} e5 {[%emt 0:00:40]} 2. Nf3 {[%emt 0:00:09]} Nf6 {[%emt 0:00:26]} 3. d4 {[%emt 0:00:31]} Nxe4 {[%emt 0:00:27]} 4. Bd3 {[%emt 0:00:25]} d5 {[%emt 0:00:39]} 5. Nxe5 {[%emt 0:00:13]} Nd7 {[%emt 0:00:27]} 6. Nc3 {[%emt 0:01:06]} Nxe5 {[%emt 0:02:04]} 7. dxe5 {[%emt 0:01:16]} Nxc3 {[%emt 0:00:37]} 8. bxc3 {[%emt 0:00:11]} Be7 {[%emt 0:00:32]} 9. O-O {[%emt 0:01:43]} O-O {[%emt 0:00:46]} 10. Qh5 {[%emt 0:15:19][%csl Gd3][%cal Rh5h7]} g6 {[%emt 0:01:48]} 11. Qf3 {[%emt 0:03:07]} Re8 {[%emt 0:07:34] The position is equal.} 12. Qg3 {[%emt 0:08:19]} c5 {[%emt 0:13:44]} 13. c4 {[%emt 0:07:08]} Be6 {[%emt 0:06:52]} 14. cxd5 {[%emt 0:02:00]} Qxd5 {[%emt 0:00:17]} 15. Re1 {[%emt 0:02:55]} Red8 {[%emt 0:05:05]} 16. Bf4 {[%emt 0:08:20]} Qc6 {[%emt 0:04:56]} 17. h4 {[%emt 0:13:15]} Rd4 {[%emt 0:11:19]} 18. c3 {[%emt 0:05:53]} Rxd3 {[%emt 0:07:19]} 19. Qxd3 {[%emt 0:00:08]} Bxh4 {[%emt 0:00:17]} 20. Qe3 {[%emt 0:06:10]} Be7 {[%emt 0:01:50]} 21. Bg5 {[%emt 0:00:46]} Bf8 {[%emt 0:00:13]} 22. Bf6 {[%emt 0:02:09]} b5 {[%emt 0:01:48]} 23. Re2 {[%emt 0:02:57]} a5 $2 {[%emt 0:01:03][%mdl 8192] Black cannot hold the game after this.} (23... c4 $16) 24. Rd2 {[%emt 0:02:28]} b4 {[%emt 0:02:15]} 25. Rad1 {[%emt 0:05:21]} b3 $2 {[%emt 0:05:45]} (25... c4 26. Rd8 Rxd8 27. Rxd8 Qc7) 26. Rd8 $18 {[%emt 0:03:13][%cal Od8f8] aiming for Rxf8+!} bxa2 {[%emt 0:07:59] [#] Threatens to win with ...Rxd8. Black is weak on the dark squares} 27. Qh6 $1 {[%emt 0:02:04][%csl Gd8][%cal Rh6f8]} Qe8 {[%emt 0:01:37]} 28. Rxe8 {[%emt 0:00:56]} Rxe8 {[%emt 0:00:05]} 29. Qc1 {[%emt 0:02:53]} Rb8 {[%emt 0:01:39]} 30. Qa1 {[%emt 0:01:03]} a4 {[%emt 0:01:15][%cal Ba5a4,Ba4a3][%mdl 32]} 31. Kh2 {[%emt 0:01:12]} a3 {[%emt 0:00:35] [#]} 32. c4 $1 {[%emt 0:01:50]} Bxc4 {[%emt 0:00:19] [#]} 33. e6 $1 {[%emt 0:00:30]} Bxe6 {[%emt 0:03:03]} 34. Rd8 {[%emt 0:00:25]} Rxd8 {[%emt 0:01:24]} ({Not} 34... Rb1 35. Qe5 (35. Rxf8+ Kxf8 36. Qe5 Kg8 37. Qc7 Rh1+ 38. Kg3 Rh3+ 39. gxh3 h5 40. Qd8+ Kh7 41. Qh8#) (35. Rxf8+ Kxf8 36. Qe5 Kg8 37. Qc7 Rh1+ 38. Kg3 Rh3+ 39. gxh3 h5 40. Qd8+ Kh7 41. Qh8#)) 35. Bxd8 {[%emt 0:00:02]} f5 {[%emt 0:01:29]} 36. Bf6 {[%emt 0:00:22]} Kf7 {[%emt 0:00:01]} 37. Be5 {[%emt 0:00:26]} Bb3 {[%emt 0:03:24]} 38. Qc3 {[%emt 0:00:43]} c4 {[%emt 0:00:02]} 39. Qe3 {[%emt 0:00:45]} Ke6 {[%emt 0:01:02]} 40. Bg7+ {[%emt 0:00:28]} Kf7 {[%emt 0:00:32]} 41. Ba1 {[%emt 0:00:45]} Bd6+ {[%emt 0:00:33]} 42. g3 {[%emt 0:00:15]} f4 {[%emt 0:00:34]} 43. Qa7+ {[%emt 0:00:14]} Be7 {[%emt 0:00:39]} 44. gxf4 {[%emt 0:00:12]} h5 {[%emt 0:00:09]} 45. Qd4 {[%emt 0:00:23]} Ke8 {[%emt 0:01:13]} 46. Qe4 {[%emt 0:00:11]} (46. Qd5 $142 Kf8 47. f5 gxf5 48. Qxf5+ Ke8 49. Qxh5+ Kf8 50. Qf5+ Ke8 51. Qe6) 46... Kd7 {[%emt 0:00:38]} 47. Qxg6 {[%emt 0:00:11] White wants to mate with Qf5+.} Bd6 {[%emt 0:00:05]} 48. Kh3 {[%emt 0:00:41]} c3 {[%emt 0:00:23]} 49. Qg7+ {[%emt 0:00:41]} Be7 {[%emt 0:00:51]} 50. Qxc3 {[%emt 0:00:28]} Be6+ {[%emt 0:00:06]} 51. Kh2 {[%emt 0:00:13]} h4 {[%emt 0:00:24]} 52. Qd3+ {[%emt 0:00:17] White mates.} Kc6 {[%emt 0:00:54]} 53. Qe4+ {[%emt 0:01:02]} Kd7 {[%emt 0:00:11]} 54. f5 {[%emt 0:00:19]} Bf7 {[%emt 0:00:00]} 55. f4 {[%emt 0:00:40] Weighted Error Value: White=0.13 (very precise) /Black=0.58.  Loses game:     	---       	Black=1      Mistake:       	---       	Black=1      Inaccurate:     	White=1     	Black=4      OK:         	White=7     	Black=10     Best:        	White=1     	Black=2} 1-0

[Event "7th Sharjah Challengers 2024"]
[Site "Sharjah"]
[Date "2024.05.19"]
[Round "6.5"]
[White "Laddha, Shubh Jayesh"]
[Black "Burmakin, Vladimir"]
[Result "0-1"]
[ECO "B01"]
[WhiteElo "2325"]
[BlackElo "2483"]
[Annotator "TA"]
[PlyCount "102"]
[EventDate "2024.05.13"]
[EventType "swiss"]
[EventCountry "UAE"]
[SourceTitle "playchess.com"]
[Source "ChessBase"]
[SourceQuality "1"]
[TimeControl "5400+30"]

{[%evp 30,102,-9,-35,-37,-26,-18,-47,0,0,-8,0,24,0,0,0,0,-49,-64,-40,-31,-52,-36,-55,-39,-54,-58,-42,-38,-132,-62,-100,-79,-147,-135,-186,-175,-177,-183,-220,-209,-219,-227,-350,-353,-343,-336,-513,-394,-376,-397,-463,-460,-566,-558,-534,-547,-706,-674,-694,-578,-804,-789,-845,-789,-781,-611,-755,-668,-1016,-920,-29987,-29988,-29983,-1270]} 1. e4 {[%emt 0:00:03]} d5 {[%emt 0:00:11]} 2. exd5 {[%emt 0:00:08]} Qxd5 {[%emt 0:00:02]} 3. Nc3 {[%emt 0:00:07]} Qd6 {[%emt 0:00:03]} 4. d4 {[%emt 0:00:05]} Nf6 {[%emt 0:00:06]} 5. Nf3 {[%emt 0:00:03]} c6 {[%emt 0:00:06]} 6. g3 {[%emt 0:00:18] B01: Scandinavian Defence.} Bf5 {[%emt 0:00:31]} 7. Bf4 {[%emt 0:01:00]} Qd8 {[%emt 0:00:04]} 8. Bd3 {[%emt 0:00:57]} Bxd3 {[%emt 0:01:06]} 9. Qxd3 {[%emt 0:00:07]} e6 {[%emt 0:00:06]} 10. O-O-O {[%emt 0:00:42]} Bd6 $146 {[%emt 0:00:18]} ({Predecessor:} 10... Be7 11. Bxb8 Rxb8 12. Ne5 O-O 13. f4 Qa5 14. Kb1 Rbd8 15. Qf3 Qb6 16. Ne2 c5 {1-0 Kovacevic,A (2564)-Milanovic,D (2491) SRB-chT Kragujevac 2013 (6.6)}) 11. Be5 {[%emt 0:12:09]} Be7 {[%emt 0:05:33]} 12. Kb1 {[%emt 0:10:44]} Nbd7 {[%emt 0:00:23]} 13. Qe2 {[%emt 0:04:45]} Qa5 {[%emt 0:11:23]} 14. Nd2 {[%emt 0:13:04]} O-O {[%emt 0:12:03]} 15. g4 {[%emt 0:09:45]} Nd5 {[%emt 0:04:53]} 16. Nxd5 {[%emt 0:08:20]} cxd5 {[%emt 0:00:50]} 17. f4 {[%emt 0:02:23]} Rac8 {[%emt 0:03:57]} 18. Nb3 {[%emt 0:01:45]} Qa4 {[%emt 0:00:26]} (18... Qb6 $15 {is superior.} 19. f5 a5) 19. f5 $11 {[%emt 0:02:41]} Rc6 {[%emt 0:00:10]} 20. Rhf1 {[%emt 0:06:12]} Qc4 {[%emt 0:21:28]} 21. Qg2 {[%emt 0:06:43]} Qb5 {[%emt 0:01:34]} 22. fxe6 {[%emt 0:02:01]} Rxe6 {[%emt 0:00:15]} 23. Bg3 {[%emt 0:02:38]} (23. Rde1 $1 $11) 23... Nf6 $1 $15 {[%emt 0:11:54]} 24. Bh4 {[%emt 0:02:39]} Ne4 {[%emt 0:00:08]} 25. Bxe7 {[%emt 0:00:33]} Rxe7 {[%emt 0:00:01]} 26. Qf3 {[%emt 0:01:07]} Rc8 {[%emt 0:06:06]} 27. Qd3 {[%emt 0:01:54]} Qxd3 {[%emt 0:00:58]} 28. Rxd3 {[%emt 0:11:37]} Nd6 {[%emt 0:00:09]} 29. c3 {[%emt 0:00:00] [#]} (29. Nc1 $15) 29... f6 {[%emt 0:02:44]} ({Black should play} 29... Re2 $1 $17 {[%cal Od6c4] ...Nc4! would now be deadly.} 30. Rd2 Rce8 31. Rxe2 Rxe2) 30. Rdf3 {[%emt 0:00:00]} Rce8 {[%emt 0:00:41]} 31. h4 {[%emt 0:00:00]} ({Better is} 31. Nc1) 31... Re1+ {[%emt 0:01:45]} 32. Rxe1 {[%emt 0:00:00]} (32. Nc1 $17) 32... Rxe1+ $19 {[%emt 0:00:02]} 33. Kc2 {[%emt 0:00:00]} Re2+ {[%emt 0:00:51]} 34. Kc1 {[%emt 0:00:04]} Rg2 {[%emt 0:01:51]} (34... Nc4 35. Nc5) 35. Rf4 {[%emt 0:01:04]} Nc4 {[%emt 0:00:39]} 36. g5 {[%emt 0:00:59]} (36. Nc5 {was the only chance.}) 36... fxg5 $19 {[%emt 0:02:16]} (36... Nxb2 37. Rf5 Nc4 38. Kb1) 37. hxg5 {[%emt 0:00:06]} b6 {[%emt 0:00:46]} ({But not} 37... Rxg5 38. Rf1 $19) (37... Nxb2 38. Rf5 Nc4 39. Kb1) (37... Rxb2 38. Na5 Rb5 39. Nb3 $17) 38. g6 {[%emt 0:01:50]} (38. Rf3 {keeps fighting.}) 38... Rxg6 {[%emt 0:00:10]} 39. Rf2 {[%emt 0:00:12]} h5 {[%emt 0:00:31]} 40. Kd1 {[%emt 0:00:37]} h4 {[%emt 0:01:42]} 41. Rh2 {[%emt 0:00:58]} Rg1+ {[%emt 0:00:51]} 42. Ke2 {[%emt 0:00:13]} g5 {[%emt 0:00:24]} 43. Kf2 {[%emt 0:00:31]} Rb1 {[%emt 0:01:21]} 44. Kf3 {[%emt 0:00:29]} Kf7 {[%emt 0:02:16]} 45. Kg4 {[%emt 0:00:39]} Kg6 {[%emt 0:00:09]} ({Not} 45... Nxb2 46. Kxg5 Nd1 47. Rxh4 $17) 46. Re2 {[%emt 0:00:19]} Rg1+ {[%emt 0:00:09]} 47. Kh3 {[%emt 0:00:11]} Rg3+ {[%emt 0:00:17]} 48. Kh2 {[%emt 0:00:04]} Re3 {[%emt 0:00:19]} 49. Rf2 {[%emt 0:00:08]} g4 {[%emt 0:00:16]} 50. Rf8 {[%emt 0:00:19]} Re2+ {[%emt 0:00:16]} 51. Kg1 {[%emt 0:00:06]} g3 {[%emt 0:00:55]} (51... Ne3 $142 52. Re8 g3 53. Rxe3 Rxe3 54. Na1 h3 (54... Re1+ {is a self mate.} 55. Kg2 Re2+ 56. Kf3 Rf2+ 57. Ke3 h3 58. Kd3 h2 59. c4 h1=Q 60. cxd5 Qf3+ 61. Kc4 Qe2+ 62. Kb4 a5+ 63. Ka4 Qc4+ 64. Ka3 Qb4#) 55. Kf1 h2 56. Kg2 Re1 (56... Re2+ 57. Kf3 g2 58. Kxe2 h1=Q 59. Nb3 Qf1+ 60. Kd2 g1=Q 61. c4 Qh2+ 62. Ke3 Qh6#) 57. Kxg3 h1=Q (57... h1=R $2 58. Nc2 $19) 58. Nc2 Rg1+ 59. Kf2 Rf1+ 60. Ke2 Qf3+ 61. Kd2 Rd1#) 0-1